fUST/lending_fUST_20250510
["ID","MTS","AMOUNT","RATE_DAILY","PERIOD"]
[360553938,1746885044906,-151.0,8.219e-05,2]
[360553939,1746885044916,-151.0,8.219e-05,2]
[360553940,1746885044925,-177.09852,8.219e-05,2]
[360553941,1746885044935,-151.0,8.219e-05,2]
[360553942,1746885044945,-151.0,8.219e-05,2]
[360553943,1746885044954,-151.0,8.219e-05,2]
[360553944,1746885044964,-476.911463,8.219e-05,2]
[360553945,1746885044974,-476.911463,8.219e-05,2]
[360553946,1746885044983,-476.911463,8.219e-05,2]
[360553947,1746885044993,-476.911463,8.219e-05,2]
[360553948,1746885045002,-151.0,8.219e-05,2]
[360553949,1746885045016,-151.0,8.219e-05,2]
[360553950,1746885045025,-151.0,8.219e-05,2]
[360553951,1746885045035,-151.0,8.219e-05,2]
[360553952,1746885045045,-151.0,8.219e-05,2]
[360553953,1746885045055,-151.0,8.219e-05,2]
[360553954,1746885045064,-151.0,8.219e-05,2]
[360553955,1746885045074,-151.0,8.219e-05,2]
[360553956,1746885045084,-552.412,8.263e-05,2]
[360553957,1746885045094,-708.0,8.263e-05,2]
[360553958,1746885045104,-2248.0,8.263e-05,2]
[360553959,1746885045113,-175.5966439,8.27e-05,2]
[360553960,1746885045122,-316.9570052,8.27e-05,2]
[360553961,1746885045132,-157.5095296,8.27e-05,2]
[360553962,1746885045143,-155.937851,8.27e-05,2]
[360553963,1746885045152,-591.3543284,8.27e-05,2]
[360553964,1746885045162,-175.5966439,8.28e-05,2]
[360553965,1746885045172,-174.4908541,8.28e-05,2]
[360553966,1746885045182,-175.5051018,8.28e-05,2]
[360553967,1746885045192,-175.5966439,8.29e-05,2]
[360553968,1746885045201,-195.498,8.302e-05,2]
[360553969,1746885045211,-239.635,8.302e-05,2]
[360553970,1746885045220,-152.278,8.302e-05,2]
[360553971,1746885045230,-151.527,8.302e-05,2]
[360553972,1746885045239,-152.0,8.309e-05,2]
[360553973,1746885045249,-35303.52925341,8.328e-05,2]
[360553974,1746885045259,-151.0,8.328e-05,2]
[360553975,1746885045272,-167.773,8.328e-05,2]
[360553976,1746885045282,-167.773,8.328e-05,2]
[360553977,1746885045292,-476.911463,8.328e-05,2]
[360553978,1746885045301,-476.911463,8.328e-05,2]
[360553979,1746885045311,-151.0,8.328e-05,2]
[360553980,1746885045320,-2721.2,8.407e-05,2]
[360553981,1746885045330,-2721.2,8.407e-05,2]
[360553982,1746885045340,-2721.2,8.407e-05,2]
[360553983,1746885045349,-2721.2,8.407e-05,2]
[360553984,1746885045359,-2721.2,8.407e-05,2]
[360553985,1746885045368,-2721.2,8.407e-05,2]
[360553986,1746885045378,-2721.2,8.407e-05,2]
[360553987,1746885045387,-155.53390053,8.407e-05,2]
[360553988,1746885045397,-71229.15469405,8.412e-05,2]
[360554036,1746885046197,-150.482,8.263e-05,2]
[360554038,1746885046207,-782883.5588832,8.412e-05,2]
[360554185,1746885155579,24233.6083108,7.397e-05,2]
[360554284,1746885863447,573.92199603,0.00022,120]
[360554287,1746885957144,2011.608463,7.217e-05,2]
[360554343,1746886177120,250.0,7.166e-05,2]
[360554347,1746886226782,-348.90882123,8.019e-05,2]
[360554380,1746886232243,-910.08459265,8.019e-05,2]
[360554382,1746886232252,-300.0,8.08e-05,2]
[360554383,1746886232262,-1200.0,8.08e-05,2]
[360554386,1746886232272,-300.0,8.08e-05,2]
[360554388,1746886232282,-500.0,8.081e-05,2]
[360554390,1746886232294,-500.0,8.081e-05,2]
[360554392,1746886232304,-500.0,8.081e-05,2]
[360554394,1746886232314,-500.0,8.081e-05,2]
[360554396,1746886232324,-282.89670002,8.081e-05,2]
[360554398,1746886232333,-155.0,8.136e-05,2]
[360554400,1746886232343,-5117.07618788,8.156e-05,2]
[360554401,1746886232352,-410.142,8.163e-05,2]
[360554402,1746886232362,-1000.0,8.163e-05,2]
[360554403,1746886232371,-437.13688863,8.219e-05,2]
[360554404,1746886232380,-423.82545921,8.219e-05,2]
[360554405,1746886232389,-1581.63,8.219e-05,2]
[360554406,1746886232399,-400.0,8.219e-05,2]
[360554407,1746886232408,-400.0,8.219e-05,2]
[360554408,1746886232417,-400.0,8.219e-05,2]
[360554409,1746886232427,-400.0,8.219e-05,2]
[360554410,1746886232435,-400.0,8.219e-05,2]
[360554411,1746886232445,-400.0,8.219e-05,2]
[360554412,1746886232454,-400.0,8.219e-05,2]
[360554413,1746886232463,-400.0,8.219e-05,2]
[360554414,1746886232472,-400.0,8.219e-05,2]
[360554415,1746886232482,-400.0,8.219e-05,2]
[360554416,1746886232491,-400.0,8.219e-05,2]
[360554417,1746886232500,-418.38333904,8.219e-05,2]
[360554418,1746886232509,-400.0,8.219e-05,2]
[360554419,1746886232519,-400.0,8.219e-05,2]
[360554420,1746886232529,-400.0,8.219e-05,2]
[360554421,1746886232541,-400.0,8.219e-05,2]
[360554423,1746886232550,-400.0,8.219e-05,2]
[360554425,1746886232560,-400.0,8.219e-05,2]
[360554427,1746886232570,-400.0,8.219e-05,2]
[360554429,1746886232579,-354.62927856,8.219e-05,2]
[360554431,1746886232589,-400.0,8.219e-05,2]
[360554432,1746886232598,-400.0,8.219e-05,2]
[360554434,1746886232607,-447.74246438,8.219e-05,2]
[360554437,1746886232617,-400.0,8.219e-05,2]
[360554439,1746886232626,-400.0,8.219e-05,2]
[360554441,1746886232636,-400.0,8.219e-05,2]
[360554443,1746886232646,-400.0,8.219e-05,2]
[360554445,1746886232655,-788.68,8.219e-05,2]
[360554446,1746886232665,-400.0,8.219e-05,2]
[360554448,1746886232674,-317.00535241,8.219e-05,2]
[360554451,1746886232684,-400.0,8.219e-05,2]
[360554452,1746886232693,-400.0,8.219e-05,2]
[360554454,1746886232702,-400.0,8.219e-05,2]
[360554456,1746886232711,-400.0,8.219e-05,2]
[360554458,1746886232721,-400.0,8.219e-05,2]
[360554460,1746886232731,-400.0,8.219e-05,2]
[360554462,1746886232741,-686.32,8.219e-05,2]
[360554464,1746886232750,-400.0,8.219e-05,2]
[360554466,1746886232760,-420.13,8.219e-05,2]
[360554468,1746886232769,-400.0,8.219e-05,2]
[360554470,1746886232778,-437.65209271,8.219e-05,2]
[360554472,1746886232788,-490.85,8.219e-05,2]
[360554474,1746886232797,-400.0,8.219e-05,2]
[360554476,1746886232806,-400.0,8.219e-05,2]
[360554478,1746886232816,-400.0,8.219e-05,2]
[360554480,1746886232825,-400.0,8.219e-05,2]
[360554482,1746886232835,-384.51097812,8.219e-05,2]
[360554484,1746886232844,-200.0,8.219e-05,2]
[360554486,1746886232853,-400.0,8.219e-05,2]
[360554488,1746886232863,-400.0,8.219e-05,2]
[360554490,1746886232872,-400.0,8.219e-05,2]
[360554492,1746886232882,-400.0,8.219e-05,2]
[360554494,1746886232891,-400.0,8.219e-05,2]
[360554496,1746886232900,-400.0,8.219e-05,2]
[360554498,1746886232909,-400.0,8.219e-05,2]
[360554500,1746886232919,-400.0,8.219e-05,2]
[360554502,1746886232928,-400.0,8.219e-05,2]
[360554504,1746886232938,-400.0,8.219e-05,2]
[360554506,1746886232948,-543.04,8.219e-05,2]
[360554508,1746886232957,-400.0,8.219e-05,2]
[360554510,1746886232967,-249.62512493,8.219e-05,2]
[360554512,1746886232976,-400.0,8.219e-05,2]
[360554514,1746886232985,-400.0,8.219e-05,2]
[360554516,1746886232996,-897.68,8.219e-05,2]
[360554518,1746886233005,-400.0,8.219e-05,2]
[360554520,1746886233014,-400.0,8.219e-05,2]
[360554522,1746886233024,-400.0,8.219e-05,2]
[360554525,1746886233038,-1455.88,8.219e-05,2]
[360554527,1746886233048,-495.53693531,8.219e-05,2]
[360554529,1746886233057,-587.79,8.219e-05,2]
[360554531,1746886233067,-400.0,8.219e-05,2]
[360554532,1746886233076,-680.16,8.219e-05,2]
[360554534,1746886233086,-433.1,8.219e-05,2]
[360554536,1746886233095,-400.0,8.219e-05,2]
[360554538,1746886233104,-400.0,8.219e-05,2]
[360554540,1746886233113,-400.0,8.219e-05,2]
[360554542,1746886233123,-400.0,8.219e-05,2]
[360554544,1746886233135,-452.3,8.219e-05,2]
[360554546,1746886233145,-591.7,8.219e-05,2]
[360554548,1746886233154,-735.06,8.219e-05,2]
[360554550,1746886233163,-400.0,8.219e-05,2]
[360554552,1746886233174,-400.0,8.219e-05,2]
[360554554,1746886233183,-400.0,8.219e-05,2]
[360554556,1746886233192,-400.0,8.219e-05,2]
[360554558,1746886233202,-400.0,8.219e-05,2]
[360554560,1746886233213,-400.0,8.219e-05,2]
[360554562,1746886233223,-400.0,8.219e-05,2]
[360554564,1746886233233,-985.79,8.219e-05,2]
[360554566,1746886233243,-400.0,8.219e-05,2]
[360554568,1746886233253,-400.0,8.219e-05,2]
[360554570,1746886233263,-400.0,8.219e-05,2]
[360554572,1746886233273,-400.0,8.219e-05,2]
[360554574,1746886233282,-1060.68,8.219e-05,2]
[360554576,1746886233295,-553.92,8.219e-05,2]
[360554578,1746886233305,-400.0,8.219e-05,2]
[360554580,1746886233315,-400.0,8.219e-05,2]
[360554582,1746886233325,-400.0,8.219e-05,2]
[360554584,1746886233335,-400.0,8.219e-05,2]
[360554586,1746886233346,-400.0,8.219e-05,2]
[360554588,1746886233356,-883.59,8.219e-05,2]
[360554591,1746886233366,-400.0,8.219e-05,2]
[360554593,1746886233376,-500.0,8.219e-05,2]
[360554594,1746886233385,-400.0,8.219e-05,2]
[360554597,1746886233395,-400.0,8.219e-05,2]
[360554598,1746886233404,-400.0,8.219e-05,2]
[360554601,1746886233415,-654.65,8.219e-05,2]
[360554603,1746886233424,-400.0,8.219e-05,2]
[360554604,1746886233435,-683.96,8.219e-05,2]
[360554607,1746886233445,-181.78472884,8.219e-05,2]
[360554642,1746886238639,-404.21195701,8.08e-05,2]
[360554643,1746886238649,-170.55911029,8.08e-05,2]
[360554644,1746886238659,-248.58527116,8.219e-05,2]
[360554645,1746886238668,-400.0,8.219e-05,2]
[360554646,1746886238677,-400.0,8.219e-05,2]
[360554647,1746886238690,-400.0,8.219e-05,2]
[360554648,1746886238699,-400.0,8.219e-05,2]
[360554649,1746886238708,-209.75032361,8.219e-05,2]
[360554657,1746886239970,-177.90104503,8.018e-05,2]
[360554677,1746886240618,-75.75414386,8.018e-05,2]
[360554678,1746886240628,-190.24967639,8.219e-05,2]
[360554679,1746886240637,-400.0,8.219e-05,2]
[360554680,1746886240647,-55.40371375,8.219e-05,2]
[360554784,1746886246510,-1076.03628625,8.219e-05,2]
[360554785,1746886246523,-400.0,8.219e-05,2]
[360554787,1746886246532,-400.0,8.219e-05,2]
[360554789,1746886246541,-400.0,8.219e-05,2]
[360554791,1746886246552,-400.0,8.219e-05,2]
[360554793,1746886246562,-406.89,8.219e-05,2]
[360554796,1746886246571,-400.0,8.219e-05,2]
[360554797,1746886246580,-400.0,8.219e-05,2]
[360554799,1746886246590,-400.0,8.219e-05,2]
[360554801,1746886246599,-400.0,8.219e-05,2]
[360554804,1746886246608,-400.0,8.219e-05,2]
[360554825,1746886246790,-400.0,8.219e-05,2]
[360554827,1746886246800,-670.8,8.219e-05,2]
[360554829,1746886246810,-400.0,8.219e-05,2]
[360554831,1746886246820,-483.21930972,8.219e-05,2]
[360554833,1746886246829,-400.0,8.219e-05,2]
[360554835,1746886246839,-400.0,8.219e-05,2]
[360554837,1746886246848,-494.04,8.219e-05,2]
[360554839,1746886246857,-261.06727426,8.219e-05,2]
[360554841,1746886246866,-400.0,8.219e-05,2]
[360554843,1746886246876,-650.17,8.219e-05,2]
[360554845,1746886246885,-400.0,8.219e-05,2]
[360554847,1746886246894,-923.88,8.219e-05,2]
[360554849,1746886246903,-504.08232142,8.219e-05,2]
[360554851,1746886246913,-1202.99,8.219e-05,2]
[360554853,1746886246922,-989.83,8.219e-05,2]
[360554855,1746886246933,-400.0,8.219e-05,2]
[360554857,1746886246943,-400.0,8.219e-05,2]
[360554859,1746886246953,-598.0,8.219e-05,2]
[360554861,1746886246962,-509.99,8.219e-05,2]
[360554863,1746886246972,-400.0,8.219e-05,2]
[360554865,1746886246981,-400.0,8.219e-05,2]
[360554867,1746886246991,-787.96,8.219e-05,2]
[360554868,1746886247000,-1023.72,8.219e-05,2]
[360554869,1746886247009,-400.0,8.219e-05,2]
[360554870,1746886247018,-400.0,8.219e-05,2]
[360554871,1746886247027,-455.09,8.219e-05,2]
[360554872,1746886247036,-400.0,8.219e-05,2]
[360554873,1746886247044,-2227.37,8.219e-05,2]
[360554874,1746886247052,-1255.83,8.219e-05,2]
[360554875,1746886247061,-606.97,8.219e-05,2]
[360554876,1746886247070,-401.35,8.219e-05,2]
[360554877,1746886247079,-1281.15,8.219e-05,2]
[360554878,1746886247089,-1515.19,8.219e-05,2]
[360554879,1746886247098,-400.0,8.219e-05,2]
[360554880,1746886247107,-400.0,8.219e-05,2]
[360554881,1746886247116,-400.0,8.219e-05,2]
[360554882,1746886247125,-400.0,8.219e-05,2]
[360554883,1746886247135,-1083.32,8.219e-05,2]
[360554884,1746886247148,-400.0,8.219e-05,2]
[360554885,1746886247157,-400.0,8.219e-05,2]
[360554886,1746886247167,-400.0,8.219e-05,2]
[360554887,1746886247177,-400.0,8.219e-05,2]
[360554888,1746886247187,-400.0,8.219e-05,2]
[360554889,1746886247198,-400.0,8.219e-05,2]
[360554890,1746886247208,-634.91,8.219e-05,2]
[360554891,1746886247220,-635.44,8.219e-05,2]
[360554892,1746886247230,-3455.83,8.219e-05,2]
[360554893,1746886247239,-400.0,8.219e-05,2]
[360554894,1746886247248,-400.0,8.219e-05,2]
[360554895,1746886247258,-1865.76,8.219e-05,2]
[360554896,1746886247267,-640.86,8.219e-05,2]
[360554897,1746886247277,-400.0,8.219e-05,2]
[360554898,1746886247287,-647.22,8.219e-05,2]
[360554899,1746886247296,-1069.37,8.219e-05,2]
[360554900,1746886247307,-400.0,8.219e-05,2]
[360554901,1746886247316,-400.0,8.219e-05,2]
[360554902,1746886247325,-400.0,8.219e-05,2]
[360554903,1746886247335,-400.0,8.219e-05,2]
[360554904,1746886247344,-739.79,8.219e-05,2]
[360554905,1746886247354,-422.76,8.219e-05,2]
[360554906,1746886247363,-400.0,8.219e-05,2]
[360554907,1746886247372,-406.6,8.219e-05,2]
[360554908,1746886247381,-400.0,8.219e-05,2]
[360554909,1746886247391,-450.19026978,8.219e-05,2]
[360554910,1746886247401,-400.0,8.219e-05,2]
[360554911,1746886247411,-400.0,8.219e-05,2]
[360554912,1746886247420,-400.0,8.219e-05,2]
[360554913,1746886247429,-400.0,8.219e-05,2]
[360554914,1746886247439,-400.0,8.219e-05,2]
[360554915,1746886247449,-856.12,8.219e-05,2]
[360554916,1746886247459,-400.0,8.219e-05,2]
[360554917,1746886247469,-963.78,8.219e-05,2]
[360554918,1746886247479,-360.25554193,8.219e-05,2]
[360554919,1746886247488,-2455.02,8.219e-05,2]
[360554920,1746886247498,-400.0,8.219e-05,2]
[360554921,1746886247507,-400.0,8.219e-05,2]
[360554922,1746886247517,-400.0,8.219e-05,2]
[360554923,1746886247527,-2941.32,8.219e-05,2]
[360554924,1746886247536,-400.0,8.219e-05,2]
[360554925,1746886247545,-443.14470573,8.219e-05,2]
[360554926,1746886247555,-1171.02,8.219e-05,2]
[360554927,1746886247564,-400.0,8.219e-05,2]
[360554928,1746886247573,-400.0,8.219e-05,2]
[360554929,1746886247582,-400.0,8.219e-05,2]
[360554930,1746886247592,-841.32,8.219e-05,2]
[360554931,1746886247602,-1357.96,8.219e-05,2]
[360554932,1746886247611,-400.0,8.219e-05,2]
[360554933,1746886247621,-400.0,8.219e-05,2]
[360554934,1746886247630,-400.0,8.219e-05,2]
[360554935,1746886247640,-400.0,8.219e-05,2]
[360554936,1746886247649,-400.0,8.219e-05,2]
[360554937,1746886247658,-400.0,8.219e-05,2]
[360554938,1746886247667,-400.0,8.219e-05,2]
[360554939,1746886247677,-495.22,8.219e-05,2]
[360554940,1746886247686,-400.0,8.219e-05,2]
[360554941,1746886247696,-400.0,8.219e-05,2]
[360554942,1746886247705,-497.89,8.219e-05,2]
[360554943,1746886247715,-400.0,8.219e-05,2]
[360554944,1746886247724,-840.93,8.219e-05,2]
[360554945,1746886247733,-400.0,8.219e-05,2]
[360554946,1746886247743,-400.0,8.219e-05,2]
[360554947,1746886247752,-400.0,8.219e-05,2]
[360554948,1746886247762,-400.0,8.219e-05,2]
[360554949,1746886247771,-400.0,8.219e-05,2]
[360554950,1746886247781,-689.79,8.219e-05,2]
[360554951,1746886247790,-400.0,8.219e-05,2]
[360554952,1746886247801,-400.0,8.219e-05,2]
[360554953,1746886247810,-1754.83,8.219e-05,2]
[360554954,1746886247820,-400.0,8.219e-05,2]
[360554955,1746886247830,-400.0,8.219e-05,2]
[360554956,1746886247840,-816.55,8.219e-05,2]
[360554957,1746886247849,-400.0,8.219e-05,2]
[360554958,1746886247859,-1145.61,8.219e-05,2]
[360554959,1746886247868,-715.07,8.219e-05,2]
[360554960,1746886247877,-400.0,8.219e-05,2]
[360554961,1746886247887,-422.57653709,8.219e-05,2]
[360554962,1746886247895,-327.09511915,8.219e-05,2]
[360554963,1746886247905,-400.0,8.219e-05,2]
[360554964,1746886247914,-400.0,8.219e-05,2]
[360554965,1746886247923,-1832.47,8.219e-05,2]
[360554966,1746886247932,-400.0,8.219e-05,2]
[360554968,1746886247941,-963.42,8.219e-05,2]
[360554970,1746886247950,-400.0,8.219e-05,2]
[360554972,1746886247960,-1295.85,8.219e-05,2]
[360554974,1746886247969,-400.0,8.219e-05,2]
[360554976,1746886247978,-400.0,8.219e-05,2]
[360554978,1746886247987,-1754.09,8.219e-05,2]
[360554980,1746886247997,-712.05,8.219e-05,2]
[360554982,1746886248006,-400.0,8.219e-05,2]
[360554984,1746886248015,-400.0,8.219e-05,2]
[360554985,1746886248024,-1897.58,8.219e-05,2]
[360554986,1746886248034,-400.0,8.219e-05,2]
[360554987,1746886248043,-400.0,8.219e-05,2]
[360554988,1746886248054,-400.0,8.219e-05,2]
[360554989,1746886248064,-400.0,8.219e-05,2]
[360554990,1746886248074,-400.0,8.219e-05,2]
[360554991,1746886248084,-400.0,8.219e-05,2]
[360554992,1746886248094,-774.81,8.219e-05,2]
[360554993,1746886248103,-400.0,8.219e-05,2]
[360554994,1746886248112,-400.0,8.219e-05,2]
[360554995,1746886248122,-400.0,8.219e-05,2]
[360554996,1746886248132,-400.0,8.219e-05,2]
[360554997,1746886248145,-6623.54,8.219e-05,2]
[360554998,1746886248154,-400.0,8.219e-05,2]
[360554999,1746886248163,-443.17,8.219e-05,2]
[360555000,1746886248175,-400.0,8.219e-05,2]
[360555003,1746886248192,-400.0,8.219e-05,2]
[360555005,1746886248206,-400.0,8.219e-05,2]
[360555006,1746886248221,-400.0,8.219e-05,2]
[360555007,1746886248235,-400.0,8.219e-05,2]
[360555008,1746886248249,-513.24975705,8.219e-05,2]
[360555009,1746886248264,-400.0,8.219e-05,2]
[360555010,1746886248278,-400.0,8.219e-05,2]
[360555011,1746886248293,-400.0,8.219e-05,2]
[360555012,1746886248307,-728.28,8.219e-05,2]
[360555013,1746886248323,-400.0,8.219e-05,2]
[360555014,1746886248336,-166.6921382,8.219e-05,2]
[360555015,1746886248350,-400.0,8.219e-05,2]
[360555016,1746886248362,-400.0,8.219e-05,2]
[360555017,1746886248379,-400.0,8.219e-05,2]
[360555018,1746886248392,-400.0,8.219e-05,2]
[360555019,1746886248405,-400.0,8.219e-05,2]
[360555020,1746886248417,-432.10094348,8.219e-05,2]
[360555021,1746886248430,-400.0,8.219e-05,2]
[360555022,1746886248443,-400.0,8.219e-05,2]
[360555023,1746886248457,-400.0,8.219e-05,2]
[360555024,1746886248471,-931.42,8.219e-05,2]
[360555025,1746886248486,-892.81,8.219e-05,2]
[360555026,1746886248501,-400.0,8.219e-05,2]
[360555027,1746886248516,-400.0,8.219e-05,2]
[360555028,1746886248528,-400.0,8.219e-05,2]
[360555029,1746886248540,-400.0,8.219e-05,2]
[360555030,1746886248553,-989.35,8.219e-05,2]
[360555031,1746886248568,-400.0,8.219e-05,2]
[360555032,1746886248583,-400.0,8.219e-05,2]
[360555033,1746886248594,-967.84,8.219e-05,2]
[360555034,1746886248608,-400.0,8.219e-05,2]
[360555035,1746886248622,-400.0,8.219e-05,2]
[360555036,1746886248634,-400.0,8.219e-05,2]
[360555037,1746886248646,-400.0,8.219e-05,2]
[360555038,1746886248658,-477.9,8.219e-05,2]
[360555039,1746886248670,-400.0,8.219e-05,2]
[360555040,1746886248682,-400.0,8.219e-05,2]
[360555041,1746886248694,-400.0,8.219e-05,2]
[360555042,1746886248706,-2216.97,8.219e-05,2]
[360555043,1746886248720,-1325.68,8.219e-05,2]
[360555044,1746886248733,-948.23,8.219e-05,2]
[360555045,1746886248744,-400.0,8.219e-05,2]
[360555046,1746886248757,-793.53,8.219e-05,2]
[360555047,1746886248769,-400.0,8.219e-05,2]
[360555048,1746886248781,-400.0,8.219e-05,2]
[360555049,1746886248794,-400.0,8.219e-05,2]
[360555050,1746886248806,-400.0,8.219e-05,2]
[360555051,1746886248818,-400.0,8.219e-05,2]
[360555052,1746886248831,-400.0,8.219e-05,2]
[360555053,1746886248844,-400.0,8.219e-05,2]
[360555054,1746886248856,-623.78,8.219e-05,2]
[360555055,1746886248868,-1237.43,8.219e-05,2]
[360555056,1746886248881,-400.0,8.219e-05,2]
[360555057,1746886248894,-400.0,8.219e-05,2]
[360555058,1746886248906,-400.0,8.219e-05,2]
[360555059,1746886248919,-400.0,8.219e-05,2]
[360555060,1746886248931,-400.0,8.219e-05,2]
[360555061,1746886248943,-400.0,8.219e-05,2]
[360555062,1746886248956,-300.0,8.219e-05,2]
[360555063,1746886248967,-1116.38,8.219e-05,2]
[360555064,1746886248979,-400.0,8.219e-05,2]
[360555065,1746886248991,-400.0,8.219e-05,2]
[360555066,1746886249003,-1486.43,8.219e-05,2]
[360555067,1746886249016,-400.0,8.219e-05,2]
[360555068,1746886249027,-517.5,8.219e-05,2]
[360555069,1746886249040,-400.0,8.219e-05,2]
[360555070,1746886249052,-400.0,8.219e-05,2]
[360555071,1746886249064,-504.41227335,8.219e-05,2]
[360555072,1746886249077,-1100.97,8.219e-05,2]
[360555073,1746886249089,-503.72501046,8.219e-05,2]
[360555074,1746886249101,-2941.42,8.219e-05,2]
[360555075,1746886249114,-648.84,8.219e-05,2]
[360555076,1746886249125,-400.0,8.219e-05,2]
[360555077,1746886249139,-400.0,8.219e-05,2]
[360555078,1746886249151,-400.0,8.219e-05,2]
[360555079,1746886249164,-390.51504553,8.219e-05,2]
[360555080,1746886267834,1000.0,7.981e-05,2]
[360555084,1746886338025,-211.33230852,8.018e-05,2]
[360555085,1746886340581,-267.4304121,8.018e-05,2]
[360555086,1746886355687,-190.21071265,8.018e-05,2]
[360555088,1746886370585,-156.79811284,8.017e-05,2]
[360555089,1746886385664,-263.74911382,8.017e-05,2]
[360555090,1746886401235,-79.45277334,8.017e-05,2]
[360555091,1746886401263,-79.73904051,8.017e-05,2]
[360555092,1746886416167,-176.51763205,8.017e-05,2]
[360555093,1746886432347,-156.79811284,8.017e-05,2]
[360555094,1746886445680,-86.9452146,8.017e-05,2]
[360555095,1746886445708,-312.62950195,8.017e-05,2]
[360556298,1746887211984,1600.86,0.00022,120]
[360556322,1746887320447,26138.07353563,0.00014,7]
[360556381,1746887432423,-363.17749353,8.218e-05,2]
[360556383,1746887432432,-300.0,8.218e-05,2]
[360556385,1746887432442,-1200.0,8.218e-05,2]
[360556387,1746887432451,-300.0,8.218e-05,2]
[360556389,1746887432460,-39964.15106552,8.219e-05,2]
[360556391,1746887432470,-354.31416853,8.219e-05,2]
[360556393,1746887432479,-500.0,8.219e-05,2]
[360556395,1746887432489,-627.37,8.219e-05,2]
[360556397,1746887432499,-400.0,8.219e-05,2]
[360556399,1746887432513,-345.41771172,8.219e-05,2]
[360556426,1746887432725,-22.11199965,8.219e-05,2]
[360556429,1746887432737,-377.88800035,8.219e-05,2]
[360556431,1746887432746,-400.0,8.219e-05,2]
[360556433,1746887432756,-400.0,8.219e-05,2]
[360556435,1746887432765,-400.0,8.219e-05,2]
[360556437,1746887432774,-400.0,8.219e-05,2]
[360556438,1746887432784,-400.0,8.219e-05,2]
[360556439,1746887432793,-400.0,8.219e-05,2]
[360556441,1746887432803,-400.0,8.219e-05,2]
[360556443,1746887432812,-400.0,8.219e-05,2]
[360556444,1746887432822,-885.39,8.219e-05,2]
[360556446,1746887432832,-400.0,8.219e-05,2]
[360556447,1746887432841,-400.0,8.219e-05,2]
[360556448,1746887432850,-400.0,8.219e-05,2]
[360556449,1746887432871,-400.0,8.219e-05,2]
[360556450,1746887432881,-400.0,8.219e-05,2]
[360556451,1746887432892,-1152.86,8.219e-05,2]
[360556452,1746887432902,-400.0,8.219e-05,2]
[360556453,1746887432912,-400.0,8.219e-05,2]
[360556454,1746887432921,-400.0,8.219e-05,2]
[360556455,1746887432931,-400.0,8.219e-05,2]
[360556456,1746887432941,-436.13,8.219e-05,2]
[360556457,1746887432951,-400.0,8.219e-05,2]
[360556458,1746887432961,-400.0,8.219e-05,2]
[360556459,1746887432971,-400.0,8.219e-05,2]
[360556460,1746887432981,-400.0,8.219e-05,2]
[360556461,1746887432991,-400.0,8.219e-05,2]
[360556462,1746887433002,-400.0,8.219e-05,2]
[360556463,1746887433012,-400.0,8.219e-05,2]
[360556464,1746887433021,-400.0,8.219e-05,2]
[360556465,1746887433031,-400.0,8.219e-05,2]
[360556466,1746887433041,-400.0,8.219e-05,2]
[360556467,1746887433051,-400.0,8.219e-05,2]
[360556468,1746887433062,-400.0,8.219e-05,2]
[360556469,1746887433073,-573.08,8.219e-05,2]
[360556470,1746887433083,-400.0,8.219e-05,2]
[360556471,1746887433093,-400.0,8.219e-05,2]
[360556472,1746887433103,-418.44222741,8.219e-05,2]
[360556473,1746887433112,-247.3692219,8.219e-05,2]
[360556474,1746887433122,-400.0,8.219e-05,2]
[360556475,1746887433132,-1227.77,8.219e-05,2]
[360556476,1746887433142,-400.0,8.219e-05,2]
[360556477,1746887433152,-400.0,8.219e-05,2]
[360556478,1746887433162,-413.6818573,8.219e-05,2]
[360556479,1746887433173,-400.0,8.219e-05,2]
[360556480,1746887433183,-400.0,8.219e-05,2]
[360556481,1746887433193,-400.0,8.219e-05,2]